[Event "Pervenstvo PFO 2023_Y19_Rapid"]
[Site "Samara region, Russia"]
[Date "2023.11.11"]
[Round "8.4"]
[White "Ermakov, Maxim"]
[Black "Pukhov, Ivan"]
[Result "1/2-1/2"]
[TimeControl "10:5"]
[WhiteFideId "54174996"]
[BlackFideId "34301895"]
[WhiteElo "1766"]
[BlackElo "1955"]

1. e4 {[%clk 00:10:07]} {[%emt 00:01:10]} c5 {[%clk 00:10:14]} 2. c3 {[%clk
00:10:07]} d5 {[%clk 00:10:14]} 3. exd5 {[%clk 00:10:16]} {[%emt 00:00:09]}
Qxd5 {[%clk 00:10:16]} 4. d4 {[%clk 00:10:16]} Nc6 {[%clk 00:10:16]} 5. Nf3
{[%clk 00:10:23]} {[%emt 00:00:11]} Nf6 {[%clk 00:10:17]} 6. Be2 {[%clk
00:10:23]} cxd4 {[%clk 00:10:17]} 7. cxd4 {[%clk 00:10:23]} e6 {[%clk
00:10:17]} 8. O-O {[%clk 00:10:23]} Be7 {[%clk 00:10:17]} 9. Nc3 {[%clk
00:10:32]} {[%emt 00:00:37]} Qd6 {[%clk 00:08:29]} {[%emt 00:01:12]} 10. Nb5
{[%clk 00:10:22]} Qd8 {[%clk 00:08:29]} 11. Bf4 {[%clk 00:10:22]} {[%emt
00:00:57]} Nd5 {[%clk 00:06:45]} {[%emt 00:01:06]} 12. Bg3 {[%clk 00:10:25]}
O-O {[%clk 00:06:45]} 13. Rc1 {[%clk 00:10:25]} {[%emt 00:00:55]} a6 {[%clk
00:05:33]} {[%emt 00:01:17]} 14. Nc3 {[%clk 00:10:29]} {[%emt 00:00:02]} Nf6
{[%clk 00:05:23]} {[%emt 00:00:14]} 15. Qd2 {[%clk 00:08:39]} {[%emt 00:01:55]}
Nb4 {[%clk 00:03:27]} {[%emt 00:02:02]} 16. Ne5 {[%clk 00:08:25]} {[%emt
00:00:19]} Nbd5 {[%clk 00:03:11]} {[%emt 00:00:21]} 17. Bf3 {[%clk 00:08:29]}
Re8 {[%clk 00:01:58]} {[%emt 00:01:18]} 18. Rfd1 {[%clk 00:08:20]} {[%emt
00:00:13]} Nxc3 {[%clk 00:01:49]} {[%emt 00:00:15]} 19. bxc3 {[%clk 00:08:14]}
{[%emt 00:00:11]} Nd5 {[%clk 00:01:46]} {[%emt 00:00:08]} 20. c4 {[%clk
00:08:09]} {[%emt 00:00:10]} Bg5 {[%clk 00:01:46]} {[%emt 00:00:05]} 21. Qb2
{[%clk 00:06:59]} {[%emt 00:01:14]} Bxc1 {[%clk 00:01:49]} {[%emt 00:00:03]} 22.
Rxc1 {[%clk 00:07:02]} {[%emt 00:00:01]} Ne7 {[%clk 00:01:15]} {[%emt
00:00:39]} 23. Be4 {[%clk 00:05:23]} {[%emt 00:01:44]} f6 {[%clk 00:00:59]}
{[%emt 00:00:22]} 24. Nd3 {[%clk 00:05:18]} {[%emt 00:00:08]} Nf5 {[%clk
00:00:39]} {[%emt 00:00:27]} 25. Bxf5 {[%clk 00:04:54]} {[%emt 00:00:29]} exf5
{[%clk 00:00:43]} 26. d5 {[%clk 00:04:55]} {[%emt 00:00:05]} b5 {[%clk
00:00:23]} {[%emt 00:00:25]} 27. Qb3 {[%clk 00:04:12]} {[%emt 00:00:48]} bxc4
{[%clk 00:00:26]} {[%emt 00:00:02]} 28. Qxc4 {[%clk 00:04:15]} {[%emt
00:00:02]} Bd7 {[%emt 00:00:08]} 29. Bc7 {[%clk 00:03:55]} {[%emt 00:00:23]}
Bb5 {[%clk 00:00:21]} {[%emt 00:00:09]} 30. Qb3 {[%clk 00:03:21]} {[%emt
00:00:38]} Qd7 {[%clk 00:00:17]} {[%emt 00:00:07]} 31. d6+ {[%clk 00:03:21]}
{[%emt 00:00:08]} Qf7 {[%clk 00:00:09]} {[%emt 00:00:13]} 32. Qxf7+ {[%clk
00:03:19]} {[%emt 00:00:07]} Kxf7 {[%clk 00:00:14]} 33. Nc5 {[%clk 00:03:21]}
{[%emt 00:00:03]} f4 {[%clk 00:00:07]} {[%emt 00:00:12]} 34. h3 {[%clk
00:03:20]} {[%emt 00:00:07]} g5 {[%clk 00:00:06]} {[%emt 00:00:05]} 35. Rd1
{[%clk 00:02:48]} {[%emt 00:00:36]} Rac8 {[%clk 00:00:06]} {[%emt 00:00:06]} 36.
a4 {[%clk 00:02:39]} {[%emt 00:00:13]} Bc6 {[%clk 00:00:08]} {[%emt 00:00:03]}
37. a5 {[%clk 00:01:40]} {[%emt 00:01:05]} Bb5 {[%clk 00:00:08]} {[%emt
00:00:05]} 38. Nb3 {[%clk 00:00:38]} {[%emt 00:01:07]} Ba4 {[%clk 00:00:08]}
{[%emt 00:00:06]} 39. Rd3 {[%clk 00:00:13]} {[%emt 00:00:30]} Bxb3 {[%clk
00:00:10]} {[%emt 00:00:02]} 40. Rxb3 {[%clk 00:00:17]} {[%emt 00:00:02]} Ke6
{[%clk 00:00:11]} {[%emt 00:00:04]} 41. Rb6 {[%clk 00:00:15]} {[%emt 00:00:07]}
Ra8 {[%clk 00:00:15]} {[%emt 00:00:01]} 42. Rb7 {[%clk 00:00:16]} {[%emt
00:00:04]} Kd7 {[%clk 00:00:10]} {[%emt 00:00:10]} 43. Bb8+ {[%clk 00:00:06]}
{[%emt 00:00:14]} Kc6 {[%clk 00:00:08]} {[%emt 00:00:06]} 44. Rb6+ {[%clk
00:00:06]} {[%emt 00:00:06]} Kd7 {[%clk 00:00:08]} {[%emt 00:00:05]} 45. Rb7+
{[%clk 00:00:09]} Ke6 {[%clk 00:00:06]} {[%emt 00:00:07]} 46. Bc7 {[%clk
00:00:10]} {[%emt 00:00:04]} h5 {[%clk 00:00:10]} {[%emt 00:00:02]} 47. Rb4
{[%clk 00:00:08]} {[%emt 00:00:07]} Ra7 {[%clk 00:00:09]} {[%emt 00:00:07]} 48.
h4 {[%clk 00:00:08]} {[%emt 00:00:04]} Kd7 {[%clk 00:00:12]} {[%emt 00:00:02]}
49. hxg5 {[%clk 00:00:09]} {[%emt 00:00:05]} fxg5 {[%clk 00:00:16]} 50. Rc4
{[%clk 00:00:13]} Rb7 {[%clk 00:00:11]} {[%emt 00:00:10]} 51. Bb6 {[%clk
00:00:06]} {[%emt 00:00:12]} Kxd6 {[%clk 00:00:13]} {[%emt 00:00:03]} 52. Rd4+
{[%clk 00:00:08]} {[%emt 00:00:02]} Kc6 {[%clk 00:00:12]} {[%emt 00:00:07]} 53.
Rc4+ {[%clk 00:00:12]} Kd7 {[%clk 00:00:11]} {[%emt 00:00:05]} 54. Rc5 {[%clk
00:00:16]} {[%emt 00:00:01]} Rg8 {[%clk 00:00:09]} {[%emt 00:00:07]} 55. Rd5+
{[%clk 00:00:20]} {[%emt 00:00:02]} Ke6 {[%clk 00:00:11]} {[%emt 00:00:03]} 56.
Rc5 {[%clk 00:00:21]} {[%emt 00:00:04]} Rd7 {[%clk 00:00:11]} {[%emt 00:00:05]}
57. Rc6+ {[%clk 00:00:16]} {[%emt 00:00:10]} Kf7 {[%clk 00:00:08]} {[%emt
00:00:06]} 58. Bc5 {[%clk 00:00:17]} {[%emt 00:00:06]} g4 {[%clk 00:00:06]}
{[%emt 00:00:07]} 59. Rxa6 {[%clk 00:00:07]} {[%emt 00:00:15]} Rc8 {[%clk
00:00:11]} 60. Ba3 {[%clk 00:00:07]} {[%emt 00:00:06]} Rc3 {[%clk 00:00:07]}
{[%emt 00:00:09]} 61. Rd6 {[%clk 00:00:07]} {[%emt 00:00:05]} Rxd6 {[%clk
00:00:07]} {[%emt 00:00:05]} 62. Bxd6 {[%clk 00:00:10]} Rc1+ {[%clk 00:00:07]}
{[%emt 00:00:06]} 63. Kh2 {[%clk 00:00:13]} Ra1 {[%clk 00:00:09]} {[%emt
00:00:05]} 64. Bxf4 {[%clk 00:00:10]} {[%emt 00:00:08]} Rxa5 {[%clk 00:00:13]}
65. Kg3 {[%clk 00:00:14]} Kg6 {[%clk 00:00:12]} {[%emt 00:00:05]} 66. Be3
{[%clk 00:00:14]} {[%emt 00:00:06]} Ra3 {[%clk 00:00:11]} {[%emt 00:00:06]} 67.
Kh4 {[%clk 00:00:17]} {[%emt 00:00:02]} Rb3 {[%clk 00:00:09]} {[%emt 00:00:07]}
68. Kg3 {[%clk 00:00:20]} Ra3 {[%clk 00:00:06]} {[%emt 00:00:09]} 69. Kh4
{[%clk 00:00:24]} Rd3 {[%clk 00:00:11]} 70. Kg3 {[%clk 00:00:28]} {[%emt
00:00:01]} Rd1 {[%clk 00:00:12]} {[%emt 00:00:03]} 71. Kf4 {[%clk 00:00:13]}
{[%emt 00:00:21]} Rg1 {[%clk 00:00:10]} {[%emt 00:00:06]} 72. Kg3 {[%clk
00:00:12]} {[%emt 00:00:06]} Kf5 {[%clk 00:00:09]} {[%emt 00:00:06]} 73. f3
{[%clk 00:00:07]} {[%emt 00:00:11]} Re1 {[%clk 00:00:08]} {[%emt 00:00:04]} 74.
fxg4+ {[%clk 00:00:10]} {[%emt 00:00:04]} hxg4 {[%clk 00:00:12]} 75. Kf2 {[%clk
00:00:12]} {[%emt 00:00:02]} Rb1 {[%clk 00:00:10]} {[%emt 00:00:06]} 76. Bd4
{[%clk 00:00:12]} {[%emt 00:00:06]} Rb3 {[%clk 00:00:10]} {[%emt 00:00:06]} 77.
Bc5 {[%clk 00:00:07]} {[%emt 00:00:11]} g3+ {[%clk 00:00:06]} {[%emt 00:00:08]}
78. Ke2 {[%clk 00:00:06]} {[%emt 00:00:06]} Ke4 {[%clk 00:00:10]} 79. Bd6
{[%clk 00:00:09]} {[%emt 00:00:02]} Rb2+ {[%clk 00:00:08]} {[%emt 00:00:08]} 80.
Kf1 {[%clk 00:00:13]} {[%emt 00:00:01]} Rb3 {[%clk 00:00:09]} {[%emt 00:00:04]}
81. Ke2 {[%clk 00:00:17]} Rd3 {[%clk 00:00:09]} {[%emt 00:00:04]} 82. Bc7
{[%clk 00:00:22]} {[%emt 00:00:02]} Rc3 {[%clk 00:00:12]} {[%emt 00:00:02]} 83.
Bd6 {[%clk 00:00:26]} Re3+ {[%clk 00:00:16]} 84. Kf1 {[%clk 00:00:18]} {[%emt
00:00:12]} Kf5 {[%clk 00:00:06]} {[%emt 00:00:15]} 85. Bc7 {[%clk 00:00:22]}
{[%emt 00:00:01]} Rc3 {[%clk 00:00:06]} {[%emt 00:00:05]} 86. Bd6 {[%clk
00:00:21]} {[%emt 00:00:06]} Ke4 {[%clk 00:00:07]} {[%emt 00:00:05]} 87. Ke2
{[%clk 00:00:21]} {[%emt 00:00:04]} Re3+ {[%clk 00:00:09]} {[%emt 00:00:03]} 88.
Kf1 {[%clk 00:00:26]} Kd5 {[%clk 00:00:07]} {[%emt 00:00:07]} 89. Bf4 {[%clk
00:00:26]} {[%emt 00:00:02]} Rb3 {[%clk 00:00:09]} {[%emt 00:00:06]} 90. Ke2
{[%clk 00:00:28]} {[%emt 00:00:02]} Ke4 {[%clk 00:00:10]} {[%emt 00:00:04]} 91.
Bc7 {[%clk 00:00:32]} {[%emt 00:00:02]} Kf5 {[%clk 00:00:07]} {[%emt 00:00:08]}
92. Bd6 {[%clk 00:00:34]} {[%emt 00:00:03]} Kg4 {[%clk 00:00:07]} {[%emt
00:00:05]} 93. Bc5 {[%clk 00:00:24]} {[%emt 00:00:15]} Rc3 {[%clk 00:00:08]}
{[%emt 00:00:03]} 94. Bb6 {[%clk 00:00:26]} {[%emt 00:00:04]} Rc1 {[%clk
00:00:09]} {[%emt 00:00:04]} 95. Ba7 {[%clk 00:00:25]} {[%emt 00:00:06]} Rh1
{[%clk 00:00:08]} {[%emt 00:00:05]} 96. Bb6 {[%clk 00:00:23]} {[%emt 00:00:07]}
Rh2 {[%clk 00:00:07]} {[%emt 00:00:07]} 97. Kf1 {[%clk 00:00:27]} Kf4 {[%clk
00:00:06]} {[%emt 00:00:07]} 98. Bc7+ {[%clk 00:00:31]} Kg4 {[%clk 00:00:08]}
{[%emt 00:00:02]} 99. Bb6 {[%clk 00:00:35]} {[%emt 00:00:02]} Rh6 {[%clk
00:00:10]} {[%emt 00:00:02]} 100. Ba7 {[%clk 00:00:29]} {[%emt 00:00:12]} Rg6
{[%clk 00:00:08]} {[%emt 00:00:07]} 101. Ke2 {[%clk 00:00:29]} {[%emt
00:00:05]} Kf4 {[%clk 00:00:12]} 102. Bb8+ {[%clk 00:00:33]} Ke4 {[%clk
00:00:16]} 103. Bc7 {[%clk 00:00:35]} {[%emt 00:00:02]} Rg7 {[%clk 00:00:07]}
{[%emt 00:00:15]} 104. Bb8 {[%clk 00:00:39]} {[%emt 00:00:02]} Rg8 {[%clk
00:00:06]} {[%emt 00:00:06]} 105. Bc7 {[%clk 00:00:43]} {[%emt 00:00:01]} Rc8
{[%clk 00:00:07]} {[%emt 00:00:03]} 106. Bxg3 {[%clk 00:00:32]} {[%emt
00:00:17]} Rc2+ {[%clk 00:00:09]} {[%emt 00:00:02]} 107. Kf1 {[%clk 00:00:33]}
{[%emt 00:00:03]} Ke3 {[%clk 00:00:13]} {[%emt 00:00:03]} 108. Kg1 {[%clk
00:00:36]} Ke2 {[%clk 00:00:09]} {[%emt 00:00:10]} 109. Kh1 {[%clk 00:00:12]}
{[%emt 00:00:26]} Kf1 {[%clk 00:00:11]} {[%emt 00:00:05]} 110. Bb8 {[%clk
00:00:12]} {[%emt 00:00:06]} Rb2 {[%clk 00:00:08]} {[%emt 00:00:08]} 111. Bc7
{[%clk 00:00:15]} {[%emt 00:00:02]} Rxg2 {[%clk 00:00:06]} {[%emt 00:00:07]}
112. Bh2 {[%clk 00:00:16]} {[%emt 00:00:03]} Rg7 {[%clk 00:00:06]} {[%emt
00:00:06]} 113. Be5 {[%clk 00:00:16]} {[%emt 00:00:04]} Rg1 {[%clk 00:00:07]}
{[%emt 00:00:06]} 114. Kh2 {[%clk 00:00:19]} {[%emt 00:00:02]} Rg5 {[%clk
00:00:10]} {[%emt 00:00:02]} 115. Bd4 {[%clk 00:00:13]} {[%emt 00:00:10]} Rd5
{[%clk 00:00:10]} {[%emt 00:00:06]} 116. Ba7 {[%clk 00:00:14]} {[%emt
00:00:04]} Rh5+ {[%clk 00:00:06]} {[%emt 00:00:08]} 117. Kg3 {[%clk 00:00:18]}
{[%emt 00:00:02]} Ke2 {[%clk 00:00:09]} {[%emt 00:00:02]} 118. Kf4 {[%clk
00:00:11]} {[%emt 00:00:12]} Rh4+ {[%clk 00:00:08]} {[%emt 00:00:06]} 119. Ke5
{[%clk 00:00:15]} 1/2-1/2

[Event "Pervenstvo PFO 2023_Y19_Rapid"]
[Site "Samara region, Russia"]
[Date "2023.11.11"]
[Round "8.5"]
[White "Tarasenko, Iaroslav"]
[Black "Yudin, Danil"]
[Result "1-0"]
[TimeControl "10:5"]
[WhiteFideId "44196008"]
[BlackFideId "44171986"]
[WhiteElo "2080"]
[BlackElo "1786"]

1. e4 {[%clk 00:10:10]} {[%emt 00:02:44]} e6 {[%clk 00:10:10]} 2. d4 {[%clk
00:10:13]} {[%emt 00:00:03]} d5 {[%clk 00:10:14]} 3. Nc3 {[%clk 00:10:16]}
{[%emt 00:00:02]} dxe4 {[%clk 00:10:18]} {[%emt 00:00:01]} 4. Nxe4 {[%clk
00:10:20]} Nd7 {[%clk 00:10:22]} 5. Nf3 {[%clk 00:10:12]} {[%emt 00:00:13]}
Ngf6 {[%clk 00:10:26]} 6. Nxf6+ {[%clk 00:10:06]} {[%emt 00:00:11]} Nxf6 {[%clk
00:10:30]} {[%emt 00:00:01]} 7. g3 {[%clk 00:10:08]} {[%emt 00:00:04]} c5
{[%clk 00:10:34]} {[%emt 00:00:01]} 8. Bg2 {[%clk 00:10:07]} {[%emt 00:00:05]}
cxd4 {[%clk 00:10:38]} {[%emt 00:00:02]} 9. Nxd4 {[%clk 00:10:01]} {[%emt
00:00:11]} Bc5 {[%clk 00:10:42]} 10. c3 {[%clk 00:10:03]} {[%emt 00:00:03]} e5
{[%clk 00:10:07]} {[%emt 00:00:40]} 11. Qe2 {[%clk 00:10:06]} Bxd4 {[%clk
00:09:40]} {[%emt 00:00:32]} 12. cxd4 {[%clk 00:10:11]} {[%emt 00:00:01]} Qxd4
{[%clk 00:09:44]} 13. Qb5+ {[%clk 00:09:38]} {[%emt 00:00:38]} Bd7 {[%clk
00:09:02]} {[%emt 00:00:47]} 14. Qxb7 {[%clk 00:09:36]} {[%emt 00:00:06]} O-O
{[%clk 00:08:34]} {[%emt 00:00:33]} 15. O-O {[%clk 00:08:54]} {[%emt 00:00:47]}
Rab8 {[%clk 00:08:26]} {[%emt 00:00:13]} 16. Qf3 {[%clk 00:08:57]} {[%emt
00:00:07]} Bg4 {[%clk 00:07:58]} {[%emt 00:00:38]} 17. Qa3 {[%clk 00:08:17]}
{[%emt 00:00:46]} Be2 {[%clk 00:05:26]} {[%emt 00:02:37]} 18. Re1 {[%clk
00:06:50]} {[%emt 00:01:32]} Bc4 {[%clk 00:05:17]} {[%emt 00:00:13]} 19. h3
{[%clk 00:04:33]} {[%emt 00:02:22]} a6 {[%clk 00:05:05]} {[%emt 00:00:19]} 20.
Rb1 {[%clk 00:04:14]} {[%emt 00:00:23]} Qd3 {[%clk 00:03:44]} {[%emt 00:01:26]}
21. Qxd3 {[%clk 00:04:18]} {[%emt 00:00:01]} Bxd3 {[%clk 00:03:49]} {[%emt
00:00:02]} 22. Ra1 {[%clk 00:04:22]} e4 {[%clk 00:03:51]} {[%emt 00:00:03]} 23.
b3 {[%clk 00:04:07]} {[%emt 00:00:20]} Rfe8 {[%clk 00:02:39]} {[%emt 00:01:17]}
24. Bb2 {[%clk 00:02:57]} {[%emt 00:01:14]} Nd5 {[%clk 00:02:41]} {[%emt
00:00:03]} 25. Rec1 {[%clk 00:02:03]} {[%emt 00:01:00]} Rec8 {[%clk 00:02:45]}
26. a3 {[%clk 00:01:49]} {[%emt 00:00:19]} f5 {[%clk 00:02:28]} {[%emt
00:00:22]} 27. b4 {[%clk 00:00:59]} {[%emt 00:00:55]} a5 {[%clk 00:01:10]}
{[%emt 00:01:23]} 28. Be5 {[%clk 00:00:26]} {[%emt 00:00:38]} Rxc1+ {[%clk
00:00:47]} {[%emt 00:00:29]} 29. Rxc1 Re8 30. Bd6 {[%clk 00:00:26]} {[%emt
00:00:08]} Rd8 {[%clk 00:00:50]} {[%emt 00:00:06]} 31. Bc5 {[%clk 00:00:24]}
{[%emt 00:00:08]} axb4 {[%clk 00:00:40]} {[%emt 00:00:15]} 32. axb4 {[%clk
00:00:28]} Rb8 {[%clk 00:00:34]} {[%emt 00:00:10]} 33. Ra1 {[%clk 00:00:11]}
{[%emt 00:00:22]} Nxb4 {[%clk 00:00:27]} {[%emt 00:00:13]} 34. Ra7 {[%clk
00:00:15]} Nc6 {[%clk 00:00:07]} {[%emt 00:00:25]} 35. Rc7 {[%clk 00:00:19]}
{[%emt 00:00:02]} Rb1+ {[%clk 00:00:08]} {[%emt 00:00:04]} 36. Kh2 {[%clk
00:00:23]} {[%emt 00:00:01]} Bb5 {[%clk 00:00:12]} {[%emt 00:00:01]} 37. g4
{[%clk 00:00:15]} {[%emt 00:00:12]} Rb2 {[%clk 00:00:07]} {[%emt 00:00:11]} 38.
gxf5 {[%clk 00:00:15]} {[%emt 00:00:04]} 1-0

[Event "Pervenstvo PFO 2023_Y19_Rapid"]
[Site "Samara region, Russia"]
[Date "2023.11.11"]
[Round "8.6"]
[White "Evtukhov, Lev"]
[Black "Babkov, Timofey"]
[Result "1/2-1/2"]
[TimeControl "10:5"]
[WhiteFideId "44173210"]
[BlackFideId "54135931"]
[WhiteElo "1923"]
[BlackElo "1855"]

1. d4 {[%clk 00:10:10]} Nc6 {[%clk 00:10:09]} {[%emt 00:00:01]} 2. d5 {[%clk
00:10:05]} {[%emt 00:00:10]} Ne5 {[%clk 00:10:13]} {[%emt 00:00:01]} 3. Nf3
{[%clk 00:09:57]} {[%emt 00:00:12]} d6 {[%clk 00:10:11]} {[%emt 00:00:08]} 4.
Nxe5 {[%clk 00:09:41]} {[%emt 00:00:20]} dxe5 {[%clk 00:10:15]} {[%emt
00:00:02]} 5. e4 {[%clk 00:09:44]} {[%emt 00:00:01]} a6 {[%clk 00:10:19]}
{[%emt 00:00:01]} 6. c4 {[%clk 00:09:35]} {[%emt 00:00:15]} Nf6 {[%clk
00:10:21]} {[%emt 00:00:03]} 7. Nc3 {[%clk 00:09:38]} {[%emt 00:00:01]} e6
{[%clk 00:10:25]} {[%emt 00:00:02]} 8. Be2 {[%clk 00:09:20]} {[%emt 00:00:22]}
exd5 {[%clk 00:10:15]} {[%emt 00:00:16]} 9. cxd5 {[%clk 00:09:23]} {[%emt
00:00:01]} Be7 {[%clk 00:09:50]} {[%emt 00:00:30]} 10. Be3 {[%clk 00:09:19]}
{[%emt 00:00:09]} O-O {[%clk 00:09:51]} {[%emt 00:00:04]} 11. O-O {[%clk
00:09:22]} {[%emt 00:00:02]} b5 {[%clk 00:09:42]} {[%emt 00:00:15]} 12. f3
{[%clk 00:09:15]} {[%emt 00:00:11]} Bb7 {[%clk 00:09:24]} {[%emt 00:00:24]} 13.
Rc1 {[%clk 00:09:11]} {[%emt 00:00:09]} c6 {[%clk 00:09:16]} {[%emt 00:00:13]}
14. dxc6 {[%clk 00:09:08]} {[%emt 00:00:08]} Bxc6 {[%clk 00:08:38]} {[%emt
00:00:43]} 15. Qb3 {[%clk 00:08:39]} {[%emt 00:00:33]} Rc8 {[%clk 00:08:33]}
{[%emt 00:00:10]} 16. Rfd1 {[%clk 00:08:34]} {[%emt 00:00:10]} Qa5 {[%clk
00:08:31]} {[%emt 00:00:07]} 17. a3 {[%clk 00:08:31]} {[%emt 00:00:09]} Rfd8
{[%clk 00:08:18]} {[%emt 00:00:17]} 18. g3 {[%clk 00:07:57]} {[%emt 00:00:40]}
h6 {[%clk 00:07:45]} {[%emt 00:00:37]} 19. Bf1 {[%clk 00:07:47]} {[%emt
00:00:15]} Rxd1 {[%clk 00:07:19]} {[%emt 00:00:31]} 20. Rxd1 {[%clk 00:07:50]}
{[%emt 00:00:03]} Rd8 {[%clk 00:07:21]} {[%emt 00:00:04]} 21. Na2 {[%clk
00:06:15]} {[%emt 00:01:38]} Bd7 {[%clk 00:06:05]} {[%emt 00:01:21]} 22. Qc3
{[%clk 00:05:48]} {[%emt 00:00:32]} Qxc3 {[%clk 00:05:50]} {[%emt 00:00:20]} 23.
Nxc3 {[%clk 00:05:51]} {[%emt 00:00:02]} Be6 {[%clk 00:05:41]} {[%emt
00:00:14]} 24. Rxd8+ {[%clk 00:04:03]} {[%emt 00:01:53]} 1/2-1/2

[Event "Pervenstvo PFO 2023_Y19_Rapid"]
[Site "Samara region, Russia"]
[Date "2023.11.11"]
[Round "8.7"]
[White "Gimazetdinov, Amir"]
[Black "Azizyan, Levon"]
[Result "1-0"]
[TimeControl "10:5"]
[WhiteFideId "54142440"]
[BlackFideId "44151888"]
[WhiteElo "1749"]
[BlackElo "1940"]

1. Nf3 {[%clk 00:10:08]} {[%emt 00:00:02]} Nf6 {[%clk 00:10:09]} {[%emt
00:00:02]} 2. c4 {[%clk 00:10:11]} {[%emt 00:00:01]} e6 {[%clk 00:10:13]} 3. e3
{[%clk 00:10:13]} {[%emt 00:00:03]} d5 {[%clk 00:10:12]} {[%emt 00:00:06]} 4.
b3 {[%clk 00:10:17]} {[%emt 00:00:01]} Be7 {[%clk 00:10:03]} {[%emt 00:00:14]}
5. Bb2 {[%clk 00:10:21]} {[%emt 00:00:01]} O-O {[%clk 00:09:55]} {[%emt
00:00:13]} 6. Be2 {[%clk 00:10:24]} dxc4 {[%clk 00:09:38]} {[%emt 00:00:22]} 7.
bxc4 {[%clk 00:10:26]} {[%emt 00:00:03]} c5 {[%clk 00:09:39]} {[%emt 00:00:04]}
8. O-O {[%clk 00:10:28]} {[%emt 00:00:03]} Nc6 {[%clk 00:09:42]} {[%emt
00:00:02]} 9. Nc3 {[%clk 00:10:29]} {[%emt 00:00:04]} b6 {[%clk 00:09:43]}
{[%emt 00:00:04]} 10. d4 {[%clk 00:10:29]} {[%emt 00:00:05]} cxd4 {[%clk
00:09:40]} {[%emt 00:00:08]} 11. exd4 {[%clk 00:10:33]} {[%emt 00:00:02]} Bb7
{[%clk 00:09:43]} {[%emt 00:00:02]} 12. h3 {[%clk 00:10:22]} {[%emt 00:00:15]}
Rc8 {[%clk 00:09:46]} {[%emt 00:00:03]} 13. Rc1 {[%clk 00:10:24]} {[%emt
00:00:03]} Qd7 {[%clk 00:08:20]} {[%emt 00:01:31]} 14. Qd2 {[%clk 00:10:10]}
{[%emt 00:00:19]} Rfd8 {[%clk 00:08:21]} {[%emt 00:00:04]} 15. Rfd1 {[%clk
00:10:13]} {[%emt 00:00:01]} Na5 {[%clk 00:08:11]} {[%emt 00:00:15]} 16. Ne5
{[%clk 00:10:17]} Qe8 {[%clk 00:08:09]} {[%emt 00:00:07]} 17. Qe3 {[%clk
00:09:11]} {[%emt 00:01:11]} Nd7 {[%clk 00:07:45]} {[%emt 00:00:29]} 18. Nxd7
{[%clk 00:08:44]} {[%emt 00:00:32]} Qxd7 {[%clk 00:07:42]} {[%emt 00:00:08]} 19.
Ne4 {[%clk 00:08:20]} {[%emt 00:00:29]} Qa4 {[%clk 00:06:32]} {[%emt 00:01:15]}
20. d5 {[%clk 00:07:07]} {[%emt 00:01:18]} Nxc4 {[%clk 00:03:41]} {[%emt
00:02:56]} 21. Bxc4 {[%clk 00:07:11]} {[%emt 00:00:02]} Rxc4 {[%clk 00:03:45]}
22. Qg3 {[%clk 00:07:13]} {[%emt 00:00:03]} Bf8 {[%clk 00:03:40]} {[%emt
00:00:09]} 23. Nf6+ {[%clk 00:07:16]} {[%emt 00:00:01]} Kh8 {[%clk 00:03:45]}
24. Nh5 {[%clk 00:07:20]} {[%emt 00:00:02]} f6 {[%clk 00:02:47]} {[%emt
00:01:03]} 25. Nxf6 {[%clk 00:06:37]} {[%emt 00:00:48]} Rxc1 {[%clk 00:02:04]}
{[%emt 00:00:48]} 26. Rxc1 {[%clk 00:06:40]} {[%emt 00:00:03]} Qxa2 {[%clk
00:01:30]} {[%emt 00:00:39]} 27. Qh4 {[%clk 00:06:02]} {[%emt 00:00:39]} h6
{[%clk 00:00:57]} {[%emt 00:00:41]} 28. Qe4 {[%clk 00:06:06]} {[%emt 00:00:01]}
gxf6 {[%clk 00:00:50]} {[%emt 00:00:12]} 29. Bxf6+ {[%clk 00:06:09]} {[%emt
00:00:02]} Bg7 {[%clk 00:00:54]} 30. Bxg7+ {[%clk 00:05:54]} {[%emt 00:00:20]}
Kxg7 {[%clk 00:00:58]} {[%emt 00:00:02]} 31. Rc7+ {[%clk 00:05:58]} Kf6 {[%clk
00:00:51]} {[%emt 00:00:13]} 32. Qxe6+ {[%clk 00:05:54]} {[%emt 00:00:09]} Kg5
{[%clk 00:00:54]} {[%emt 00:00:01]} 33. Rg7+ {[%clk 00:05:56]} {[%emt
00:00:02]} Bc8 {[%emt 00:00:07]} 1-0